fUSD/lending_fUSD_20250911
["ID","MTS","AMOUNT","RATE_DAILY","PERIOD"]
[384850646,1757592632740,-23972.30193449,0.000227,2]
[384850647,1757592632751,-1925.97004026,0.000227,2]
[384850648,1757592632763,-35277.3648498,0.000227,2]
[384850649,1757592632782,-518.42905367,0.000227,2]
[384850650,1757592632793,-1014.68785954,0.000227,2]
[384850651,1757592632804,-734.81029887,0.000227,2]
[384850652,1757592632815,-1188.97389735,0.000227,2]
[384850653,1757592632826,-1477.57408873,0.000227,2]
[384850654,1757592632841,-9106.45810981,0.000227,2]
[384850655,1757592632853,-349.42986748,0.000227,2]
[384850656,1757592632864,-300.0,0.00022799,2]
[384850657,1757592632874,-5513.0,0.000231,3]
[384850658,1757592632883,-5513.0,0.000236,5]
[384850659,1757592632893,-634.4,0.00023933,2]
[384850660,1757592632902,-612.37443773,0.00024223,2]
[384850661,1757592632912,-250.0,0.00024225,2]
[384850662,1757592632921,-1087.0,0.0002462,2]
[384850663,1757592632931,-420.0,0.00024755,2]
[384850664,1757592632940,-2257.27733119,0.000249,2]
[384850665,1757592632949,-150.0,0.00025145,7]
[384850666,1757592632958,-256.1,0.00025264,2]
[384850667,1757592632968,-7556.27,0.0002539,7]
[384850668,1757592632978,-5272.79515832,0.00025425,2]
[384850669,1757592632989,-3248.20922267,0.00025425,2]
[384850670,1757592633012,-8189.77561901,0.00025425,2]
[384850671,1757592633023,-222.12,0.00025501,2]
[384850672,1757592633033,-168.0,0.00025626,2]
[384850673,1757592633043,-168.0,0.00025666,2]
[384850674,1757592633052,-411.0,0.000257,2]
[384850675,1757592633061,-634.4,0.00025865,7]
[384850676,1757592633071,-1087.0,0.00025916,2]
[384850677,1757592633081,-168.0,0.00025928,2]
[384850678,1757592633091,-248.71531821,0.00025939,2]
[384850679,1757592633100,-2000.0,0.00026,2]
[384850680,1757592633112,-678.02289237,0.00026003,2]
[384850681,1757592633123,-1815.98833801,0.00026103,2]
[384850682,1757592633133,-242.74944621,0.00026208,2]
[384850683,1757592633145,-435.27344612,0.00026208,2]
[384850684,1757592633155,-1000.0,0.000263,2]
[384850685,1757592633165,-678.02289233,0.00026412,2]
[384850686,1757592633174,-256.1,0.00026527,2]
[384850687,1757592633184,-168.0,0.00026553,2]
[384850688,1757592633193,-5760.41671842,0.00026557,2]
[384850689,1757592633205,-487.24703895,0.00026557,2]
[384850690,1757592633214,-861.62426131,0.00026558,2]
[384850691,1757592633241,-138.37573869,0.00026558,2]
[384850692,1757592633251,-403.09712432,0.00026558,2]
[384850693,1757592633263,-2096.90287568,0.00026558,2]
[384850694,1757592633273,-151.0,0.00026564,7]
[384850695,1757592633283,-787.54717179,0.00026567,2]
[384850696,1757592633292,-1528.82811727,0.00026567,3]
[384850697,1757592633305,-32457.48865604,0.00026567,3]
[384850699,1757592637962,-1314.65,0.00026567,3]
[384850890,1757592640113,-1864.56593015,0.00026567,3]
[384851271,1757592643669,-55.97784273,0.00026567,3]
[384851278,1757592643725,-7479.3173991,0.00026567,3]
[384851509,1757592645982,-577.56145244,0.00026567,3]
[384851516,1757592646035,-2337.24999236,0.00026567,3]
[384851518,1757592646046,-5252.10048997,0.00026567,3]
[384851547,1757592646297,-668.40934613,0.00026567,3]
[384851549,1757592646309,-868.34064311,0.00026567,3]
[384852428,1757592724715,10000.0,0.00030137,120]
[384852450,1757593374744,1510.0,0.00030137,120]
[384852451,1757593397824,163.14,0.00025093,120]
[384852464,1757593596240,300.0,0.0003,120]
[384852465,1757593602035,10000.0,0.00030137,120]
[384852471,1757593674242,162.4,0.00016438,2]
[384852485,1757593759148,-151.0,0.00023632,2]
[384852486,1757593759169,-47.61392878,0.00024,5]
[384852512,1757593832216,-552.56,0.00024,2]
[384852513,1757593832226,-395.0,0.000246,2]
[384852514,1757593832237,-1200.0,0.00024899,2]
[384852515,1757593832246,-2464.76652645,0.000249,2]
[384852516,1757593832256,-250.0,0.00025,7]
[384852517,1757593832265,-153.66,0.00025205,2]
[384852518,1757593832275,-300.0,0.0002565,2]
[384852519,1757593832285,-850.0,0.0002565,2]
[384852520,1757593832295,-300.0,0.0002565,2]
[384852521,1757593832305,-666.0,0.00025651,3]
[384852522,1757593832315,-2246.58,0.00025651,2]
[384852523,1757593832324,-55671.5,0.00025651,2]
[384852524,1757593832334,-552.56,0.00025682,7]
[384852525,1757593832343,-168.0,0.00025705,2]
[384852526,1757593832353,-168.0,0.00025719,7]
[384852527,1757593832363,-387.0,0.0002578,2]
[384852528,1757593832373,-1368.82180379,0.00025782,2]
[384852529,1757593832386,-5942.78878882,0.000258,2]
[384852530,1757593832396,-15297.0362239,0.00025872,2]
[384852531,1757593832409,-151.0,0.00025879,7]
[384852532,1757593832419,-413.5256303,0.00025881,2]
[384852533,1757593832429,-160.0,0.00025882,3]
[384852534,1757593832441,-212.89373682,0.00025882,3]
[384852535,1757593832450,-515.37529716,0.00025882,3]
[384852536,1757593832460,-2164.7923394,0.00025882,2]
[384852537,1757593832470,-87216.09379008,0.00025882,2]
[384852538,1757593832483,-23752.81763653,0.00025882,2]
[384852539,1757593832495,-1400.0,0.00025882,2]
[384852540,1757593832507,-1989.87511888,0.00025882,2]
[384852541,1757593832542,-4209.71202726,0.00025882,2]
[384852548,1757593832656,-441.48428669,0.00025882,2]
[384852550,1757593832669,-3250.50647884,0.00025882,2]
[384852552,1757593832681,-1615.00378799,0.00025882,2]
[384852554,1757593832692,-814.82102388,0.00025882,2]
[384852556,1757593832704,-15479.7916969,0.00025882,2]
[384852558,1757593832715,-798.481552,0.00025882,2]
[384852561,1757593832743,-47659.11100575,0.00025882,2]
[384852563,1757593832753,-3960.63899425,0.00025882,2]
[384852565,1757593832765,-686.8509124,0.00025882,2]
[384852567,1757593832776,-342.97891115,0.00025882,2]
[384852569,1757593832786,-123.7825352,0.00025882,2]
[384852571,1757593832798,-1037.62012203,0.00025882,2]
[384852574,1757593832809,-4446.2799999,0.00025882,2]
[384852576,1757593832822,-5880.0,0.00025882,2]
[384852578,1757593832837,-1800.0,0.00025882,2]
[384852580,1757593832849,-1300.0,0.00025882,2]
[384852584,1757593832883,-377.18297077,0.00025882,2]
[384852586,1757593832892,-151.0,0.00025882,7]
[384852588,1757593832906,-230.04127739,0.00025882,7]
[384852597,1757593832982,-433.00447361,0.00025882,7]
[384852599,1757593832992,-151.0,0.00025882,7]
[384852601,1757593833003,-663.045751,0.00025882,7]
[384852629,1757593833308,-151.0,0.00025882,7]
[384852634,1757593833350,-663.045751,0.00025882,7]
[384852636,1757593833361,-197.417462,0.00025882,7]
[384852638,1757593833372,-663.045751,0.00025882,7]
[384852640,1757593833383,-197.417462,0.00025882,7]
[384852642,1757593833394,-197.417462,0.00025882,7]
[384852644,1757593833409,-197.417462,0.00025882,7]
[384852646,1757593833421,-180.866984,0.00025882,7]
[384852647,1757593833432,-180.866984,0.00025882,7]
[384852648,1757593833443,-1117.35788,0.00025882,7]
[384852649,1757593833454,-180.866984,0.00025882,7]
[384852650,1757593833465,-1117.35788,0.00025882,7]
[384852651,1757593833476,-180.866984,0.00025882,7]
[384852652,1757593833488,-151.0,0.00025882,7]
[384852653,1757593833502,-1117.35788,0.00025882,7]
[384852654,1757593833519,-1117.35788,0.00025882,7]
[384852655,1757593833530,-151.0,0.00025882,7]
[384852656,1757593833541,-151.0,0.00025882,7]
[384852657,1757593833552,-151.0,0.00025882,7]
[384852659,1757593833563,-151.0,0.00025882,7]
[384852661,1757593833576,-151.0,0.00025882,7]
[384852663,1757593833587,-151.0,0.00025882,7]
[384852665,1757593833598,-151.0,0.00025882,7]
[384852667,1757593833609,-151.0,0.00025882,7]
[384852669,1757593833621,-151.0,0.00025882,7]
[384852671,1757593833631,-184.19059875,0.0002589,2]
[384852673,1757593833641,-500.0,0.000259,9]
[384852675,1757593833655,-1087.0,0.00025908,2]
[384852677,1757593833666,-151.0,0.0002598,7]
[384852679,1757593833677,-663.045751,0.0002598,7]
[384852681,1757593833688,-151.0,0.0002598,7]
[384852683,1757593833698,-663.045751,0.0002598,7]
[384852685,1757593833708,-151.0,0.0002598,7]
[384852687,1757593833719,-663.045751,0.0002598,7]
[384852689,1757593833730,-197.417462,0.0002598,7]
[384852691,1757593833740,-663.045751,0.0002598,7]
[384852693,1757593833750,-197.417462,0.0002598,7]
[384852695,1757593833760,-197.417462,0.0002598,7]
[384852697,1757593833770,-197.417462,0.0002598,7]
[384852699,1757593833780,-180.866984,0.0002598,7]
[384852701,1757593833790,-180.866984,0.0002598,7]
[384852703,1757593833801,-1117.35788,0.0002598,7]
[384852705,1757593833811,-180.866984,0.0002598,7]
[384852707,1757593833826,-1117.35788,0.0002598,7]
[384852709,1757593833838,-180.866984,0.0002598,7]
[384852711,1757593833848,-151.0,0.0002598,7]
[384852713,1757593833859,-1117.35788,0.0002598,7]
[384852715,1757593833870,-1117.35788,0.0002598,7]
[384852717,1757593833881,-151.0,0.0002598,7]
[384852718,1757593833892,-151.0,0.0002598,7]
[384852720,1757593833905,-151.0,0.0002598,7]
[384852722,1757593833916,-151.0,0.0002598,7]
[384852724,1757593833927,-151.0,0.0002598,7]
[384852726,1757593833938,-151.0,0.0002598,7]
[384852728,1757593833949,-151.0,0.0002598,7]
[384852730,1757593833959,-151.0,0.0002598,7]
[384852732,1757593833970,-240.438511,0.0002598,7]
[384852734,1757593833980,-333.18515482,0.0002598,2]
[384852805,1757593834713,-2999.99999997,0.0002598,2]
[384852809,1757593834737,-586.16862197,0.0002598,2]
[384853019,1757593838167,-316.73,0.00025882,2]
[384853020,1757593838180,-77.0435859,0.00025882,2]
[384853021,1757593838190,-409.015316,0.00025882,7]
[384853022,1757593838200,-409.015316,0.00025882,7]
[384853023,1757593838211,-254.4257821,0.00025882,7]
[384853024,1757593838244,-154.5895339,0.00025882,7]
[384853025,1757593838254,-409.015316,0.0002598,7]
[384853026,1757593838263,-51.08212529,0.0002598,7]
[384853027,1757593838307,-357.93319071,0.0002598,7]
[384853028,1757593838317,-409.015316,0.0002598,7]
[384853029,1757593838327,-4687.41149329,0.0002598,2]
[384853030,1757593838370,-37284.34340185,0.0002598,2]
[384853031,1757593838380,-151.0,0.00025987,7]
[384853032,1757593838391,-151.0,0.0002599,7]
[384853033,1757593838402,-151.0,0.0002599,7]
[384853034,1757593838415,-151.0,0.0002599,7]
[384853035,1757593838426,-151.0,0.0002599,7]
[384853036,1757593838437,-533.46954,0.0002599,7]
[384853037,1757593838447,-151.0,0.0002599,7]
[384853038,1757593838456,-151.0,0.0002599,7]
[384853039,1757593838465,-533.46954,0.0002599,7]
[384853040,1757593838475,-151.0,0.0002599,7]
[384853041,1757593838485,-151.0,0.0002599,7]
[384853042,1757593838495,-533.46954,0.0002599,7]
[384853043,1757593838505,-151.0,0.0002599,7]
[384853044,1757593838514,-533.46954,0.0002599,7]
[384853045,1757593838524,-151.0,0.0002599,7]
[384853046,1757593838534,-151.0,0.0002599,7]
[384853047,1757593838545,-151.0,0.0002599,7]
[384853048,1757593838555,-151.0,0.0002599,7]
[384853049,1757593838565,-151.0,0.0002599,7]
[384853050,1757593838576,-151.0,0.0002599,7]
[384853051,1757593838587,-151.0,0.0002599,7]
[384853052,1757593838598,-151.0,0.0002599,7]
[384853053,1757593838608,-151.0,0.0002599,7]
[384853054,1757593838618,-151.0,0.0002599,7]
[384853055,1757593838628,-152.590407,0.0002599,7]
[384853056,1757593838639,-152.590407,0.0002599,7]
[384853057,1757593838649,-151.0,0.0002599,7]
[384853058,1757593838662,-152.590407,0.0002599,7]
[384853059,1757593838672,-152.590407,0.0002599,7]
[384853060,1757593838682,-151.0,0.0002599,7]
[384853061,1757593838692,-151.0,0.0002599,7]
[384853062,1757593838703,-151.0,0.0002599,7]
[384853063,1757593838713,-151.0,0.0002599,7]
[384853064,1757593838723,-151.0,0.0002599,7]
[384853065,1757593838733,-157.715775,0.0002599,7]
[384853066,1757593838744,-158.825119,0.0002599,7]
[384853067,1757593838753,-151.0,0.0002599,7]
[384853068,1757593838763,-151.0,0.0002599,7]
[384853069,1757593838772,-151.0,0.0002599,7]
[384853070,1757593838781,-173.178841,0.0002599,7]
[384853071,1757593838790,-173.178841,0.0002599,7]
[384853072,1757593838800,-173.178841,0.0002599,7]
[384853073,1757593838809,-173.178841,0.0002599,7]
[384853074,1757593838818,-390.268925,0.0002599,7]
[384853075,1757593838831,-390.268925,0.0002599,7]
[384853076,1757593838841,-151.0,0.0002599,7]
[384853077,1757593838850,-390.268925,0.0002599,7]
[384853078,1757593838859,-390.268925,0.0002599,7]
[384853079,1757593838870,-151.0,0.0002599,7]
[384853080,1757593838879,-151.0,0.0002599,7]
[384853081,1757593838888,-151.0,0.0002599,7]
[384853082,1757593838898,-775.089004,0.0002599,7]
[384853083,1757593838911,-775.089004,0.0002599,7]
[384853084,1757593838923,-1135.946847,0.0002599,7]
[384853085,1757593838934,-775.089004,0.0002599,7]
[384853086,1757593838944,-1135.946847,0.0002599,7]
[384853087,1757593838953,-775.089004,0.0002599,7]
[384853088,1757593838963,-1135.946847,0.0002599,7]
[384853089,1757593838974,-1135.946847,0.0002599,7]
[384853090,1757593838984,-151.0,0.0002599,7]
[384853091,1757593838995,-151.0,0.0002599,7]
[384853092,1757593839005,-165.678004,0.0002599,7]
[384853093,1757593839016,-151.0,0.0002599,7]
[384853094,1757593839026,-151.0,0.0002599,7]
[384853095,1757593839037,-151.0,0.0002599,7]
[384853096,1757593839047,-151.0,0.0002599,7]
[384853097,1757593839057,-151.0,0.0002599,7]
[384853098,1757593839067,-151.0,0.0002599,7]
[384853099,1757593839077,-229.195646,0.0002599,7]
[384853100,1757593839087,-151.0,0.0002599,7]
[384853101,1757593839098,-151.0,0.0002599,7]
[384853102,1757593839108,-249.711782,0.0002599,7]
[384853103,1757593839119,-151.0,0.0002599,7]
[384853104,1757593839128,-151.0,0.0002599,7]
[384853105,1757593839139,-249.711782,0.0002599,7]
[384853106,1757593839148,-151.0,0.0002599,7]
[384853107,1757593839162,-151.0,0.0002599,7]
[384853108,1757593839171,-249.711782,0.0002599,7]
[384853109,1757593839182,-151.0,0.0002599,7]
[384853110,1757593839192,-249.711782,0.0002599,7]
[384853111,1757593839202,-151.0,0.0002599,7]
[384853112,1757593839214,-373.605425,0.0002599,7]
[384853113,1757593839224,-373.605425,0.0002599,7]
[384853114,1757593839234,-151.0,0.0002599,7]
[384853115,1757593839245,-151.0,0.0002599,7]
[384853116,1757593839255,-151.0,0.0002599,7]
[384853118,1757593839264,-151.0,0.0002599,7]
[384853119,1757593839274,-373.605425,0.0002599,7]
[384853121,1757593839284,-212.851192,0.0002599,7]
[384853122,1757593839294,-373.605425,0.0002599,7]
[384853123,1757593839303,-151.0,0.0002599,7]
[384853124,1757593839313,-824.89157,0.0002599,7]
[384853125,1757593839322,-286.609906,0.0002599,7]
[384853126,1757593839332,-824.89157,0.0002599,7]
[384853127,1757593839341,-286.609906,0.0002599,7]
[384853128,1757593839351,-824.89157,0.0002599,7]
[384853129,1757593839360,-286.609906,0.0002599,7]
[384853130,1757593839370,-151.0,0.0002599,7]
[384853131,1757593839380,-151.0,0.0002599,7]
[384853132,1757593839390,-824.89157,0.0002599,7]
[384853133,1757593839401,-286.609906,0.0002599,7]
[384853135,1757593839414,-151.0,0.0002599,7]
[384853137,1757593839423,-153.815142,0.0002599,7]
[384853139,1757593839433,-151.0,0.0002599,7]
[384853140,1757593839442,-153.815142,0.0002599,7]
[384853142,1757593839452,-153.815142,0.0002599,7]
[384853144,1757593839461,-3985.690813,0.0002599,7]
[384853146,1757593839472,-151.0,0.0002599,7]
[384853148,1757593839481,-153.815142,0.0002599,7]
[384853149,1757593839491,-3985.690813,0.0002599,7]
[384853151,1757593839501,-3985.690813,0.0002599,7]
[384853153,1757593839510,-151.0,0.0002599,7]
[384853155,1757593839520,-3985.690813,0.0002599,7]
[384853157,1757593839530,-151.0,0.0002599,7]
[384853159,1757593839541,-153.695589,0.0002599,7]
[384853160,1757593839550,-1887.407329,0.0002599,7]
[384853162,1757593839561,-1887.407329,0.0002599,7]
[384853164,1757593839571,-212.89373682,0.0002599,7]
[384853166,1757593839581,-1887.407329,0.0002599,7]
[384853167,1757593839591,-151.0,0.0002599,7]
[384853169,1757593839602,-151.0,0.0002599,7]
[384853171,1757593839612,-1887.407329,0.0002599,7]
[384853173,1757593839622,-846.98208,0.0002599,7]
[384853175,1757593839632,-846.98208,0.0002599,7]
[384853176,1757593839643,-846.98208,0.0002599,7]
[384853178,1757593839654,-846.98208,0.0002599,7]
[384853180,1757593839668,-846.98208,0.0002599,7]
[384853182,1757593839678,-846.98208,0.0002599,7]
[384853184,1757593839689,-846.98208,0.0002599,7]
[384853185,1757593839700,-846.98208,0.0002599,7]
[384853187,1757593839711,-151.0,0.0002599,7]
[384853189,1757593839721,-152.509139,0.0002599,7]
[384853191,1757593839732,-151.0,0.0002599,7]
[384853193,1757593839742,-197.172258,0.0002599,7]
[384853195,1757593839753,-118.34701194,0.0002599,7]
[384853197,1757593839772,-78.82524606,0.0002599,7]
[384853199,1757593839783,-151.0,0.0002599,7]
[384853201,1757593839793,-151.0,0.0002599,7]
[384853203,1757593839804,-197.172258,0.0002599,7]
[384853205,1757593839815,-197.172258,0.0002599,7]
[384853207,1757593839828,-151.0,0.0002599,7]
[384853208,1757593839842,-151.0,0.0002599,7]
[384853210,1757593839854,-151.0,0.0002599,7]
[384853212,1757593839865,-197.172258,0.0002599,7]
[384853214,1757593839879,-151.0,0.0002599,7]
[384853216,1757593839889,-151.0,0.0002599,7]
[384853218,1757593839899,-197.172258,0.0002599,7]
[384853220,1757593839916,-151.0,0.0002599,7]
[384853221,1757593839929,-234.341191,0.0002599,7]
[384853223,1757593839940,-234.341191,0.0002599,7]
[384853225,1757593839951,-197.172258,0.0002599,7]
[384853228,1757593839962,-151.0,0.0002599,7]
[384853230,1757593839972,-197.172258,0.0002599,7]
[384853231,1757593839982,-273.701816,0.0002599,7]
[384853233,1757593839993,-234.341191,0.0002599,7]
[384853235,1757593840004,-234.341191,0.0002599,7]
[384853236,1757593840015,-151.0,0.0002599,7]
[384853238,1757593840027,-151.0,0.0002599,7]
[384853241,1757593840037,-231.95379,0.0002599,7]
[384853244,1757593840048,-234.341191,0.0002599,7]
[384853246,1757593840059,-151.0,0.0002599,7]
[384853248,1757593840070,-231.95379,0.0002599,7]
[384853250,1757593840080,-234.341191,0.0002599,7]
[384853252,1757593840091,-151.0,0.0002599,7]
[384853256,1757593840101,-231.95379,0.0002599,7]
[384853258,1757593840111,-234.341191,0.0002599,7]
[384853261,1757593840122,-151.0,0.0002599,7]
[384853265,1757593840132,-231.95379,0.0002599,7]
[384853269,1757593840142,-151.0,0.0002599,7]
[384853272,1757593840152,-151.0,0.0002599,7]
[384853275,1757593840169,-151.0,0.0002599,7]
[384853278,1757593840180,-234.341191,0.0002599,7]
[384853280,1757593840190,-231.95379,0.0002599,7]
[384853283,1757593840200,-231.95379,0.0002599,7]
[384853286,1757593840211,-151.0,0.0002599,7]
[384853289,1757593840222,-151.0,0.0002599,7]
[384853291,1757593840232,-261.848852,0.0002599,7]
[384853294,1757593840242,-151.0,0.0002599,7]
[384853296,1757593840252,-231.95379,0.0002599,7]
[384853297,1757593840262,-151.0,0.0002599,7]
[384853299,1757593840275,-231.95379,0.0002599,7]
[384853301,1757593840284,-178.39221775,0.0002599,7]
[384853303,1757593840294,-151.810823,0.0002599,7]
[384853305,1757593840303,-151.0,0.0002599,7]
[384853307,1757593840312,-151.0,0.0002599,7]
[384853309,1757593840321,-151.0,0.0002599,7]
[384853310,1757593840330,-151.0,0.0002599,7]
[384853312,1757593840340,-151.0,0.0002599,7]
[384853314,1757593840349,-155.10633,0.0002599,7]
[384853316,1757593840360,-151.0,0.0002599,7]
[384853318,1757593840369,-166.057888,0.0002599,7]
[384853320,1757593840378,-218.055893,0.0002599,7]
[384853322,1757593840388,-218.055893,0.0002599,7]
[384853324,1757593840397,-218.055893,0.0002599,7]
[384853326,1757593840408,-218.055893,0.0002599,7]
[384853328,1757593840418,-218.055893,0.0002599,7]
[384853329,1757593840428,-218.055893,0.0002599,7]
[384853331,1757593840444,-15256.07996657,0.0002599,2]
[384853333,1757593840470,-695.943,0.0002599,2]
[384853335,1757593840482,-4351.4000872,0.0002599,2]
[384853346,1757593840876,-3020.851096,0.00025882,3]
[384853348,1757593840888,-3799.44438748,0.00025882,3]
[384853380,1757593841373,-4064.70613534,0.00025882,3]
[384853382,1757593841385,-285.97520122,0.00025882,3]
[384853479,1757593843322,-498.87231328,0.00025882,3]
[384853480,1757593843335,-95166.32334773,0.00025882,3]
[384853481,1757593843345,-409.015316,0.00025882,7]
[384853482,1757593843354,-409.015316,0.0002598,7]
[384853483,1757593843364,-33963.68274362,0.0002599,2]
[384853502,1757593846251,-312.21514,0.00025882,7]
[384853503,1757593846261,-131.84091466,0.0002598,7]
[384853504,1757593846365,-180.37422534,0.0002598,7]
[384853506,1757593846375,-312.21514,0.0002598,7]
[384853508,1757593846385,-255.19373042,0.0002599,2]
[384853513,1757593846479,-23792.49741901,0.0002599,2]
[384853514,1757593846591,-1116.18482792,0.0002599,2]
[384853515,1757593846649,-671.29595951,0.0002599,2]
[384853516,1757593846664,-840.74490762,0.0002599,2]
[384854183,1757593861931,500.0,0.00028469,120]
[384854190,1757594013683,10000.0,0.00030137,120]
[384854191,1757594085850,200.0,0.0002,30]
[384854194,1757594346236,168.51,0.00024701,120]
[384854195,1757594546473,10000.0,0.00030137,120]
[384854196,1757594609843,153.53,0.00016438,2]
[384854197,1757594622190,3879.54367993,0.00030136,120]
[384854198,1757594687408,201.0,0.00030136,120]
[384854205,1757594874624,253.41558213,0.000301,120]
[384854211,1757594963106,-151.0,0.00020416,2]
[384854212,1757594963127,-151.0,0.00020451,2]
[384854213,1757594963148,-151.0,0.00021086,2]
[384854214,1757594963169,-161.74,0.00021111,4]
[384854215,1757594963190,-283.33262736,0.00022998,2]
[384854245,1757595031826,-722.09,0.00022,2]
[384854246,1757595031835,-259.29,0.00022,2]
[384854247,1757595031845,-803.66737264,0.00022998,2]
[384854248,1757595031854,-234.6659655,0.0002355,7]
[384854249,1757595031863,-381.01689046,0.00023936,2]
[384854250,1757595031878,-341.07310954,0.00023936,2]
[384854251,1757595031887,-80.74889746,0.00023936,2]
[384854252,1757595032013,-178.54110254,0.00023936,2]
[384854253,1757595032022,-1087.0,0.00024208,2]
[384854254,1757595032031,-656.77,0.00024213,2]
[384854255,1757595032040,-1200.0,0.00024246,2]
[384854256,1757595032049,-299.99,0.00024247,7]
[384854257,1757595032058,-200.0,0.00024259,2]
[384854258,1757595032067,-300.0,0.00024261,2]
[384854259,1757595032077,-300.0,0.00024261,2]
[384854260,1757595032086,-5000.0,0.00024262,2]
[384854261,1757595032095,-1000.0,0.00024275,2]
[384854262,1757595032104,-150.0,0.0002429,7]
[384854263,1757595032114,-649.95,0.00024365,2]
[384854264,1757595032122,-523.4,0.00024365,2]
[384854265,1757595032133,-251.36,0.00024384,2]
[384854266,1757595032143,-400.0,0.00024543,2]
[384854267,1757595032152,-4082.19,0.00024631,2]
[384854268,1757595032162,-351.22,0.00024634,2]
[384854269,1757595032171,-1000.0,0.00024658,2]
[384854270,1757595032180,-178.68,0.00024658,2]
[384854271,1757595032189,-2479.59,0.00024687,2]
[384854272,1757595032202,-250.0,0.00024704,2]
[384854273,1757595032212,-150.0,0.00024737,2]
[384854274,1757595032221,-200.0,0.0002482,2]
[384854275,1757595032231,-2832.49389775,0.000249,2]
[384854276,1757595032240,-518.0,0.00024902,2]
[384854277,1757595032250,-467.93,0.00024964,2]
[384854278,1757595032259,-200.0,0.000251,7]
[384854279,1757595032269,-200.0,0.00025152,2]
[384854280,1757595032278,-600.0,0.00025152,2]
[384854281,1757595032287,-500.0,0.00025152,2]
[384854282,1757595032296,-151.0,0.00025152,2]
[384854283,1757595032305,-191.09314958,0.00025152,2]
[384854284,1757595032314,-523.58150032,0.00025207,2]
[384854285,1757595032323,-379.36291875,0.00025242,2]
[384854287,1757595036151,-2003.63708125,0.00025242,2]
[384854288,1757595036161,-153.0397454,0.00025247,2]
[384854289,1757595036171,-1000.0,0.00025247,2]
[384854290,1757595036180,-1000.0,0.00025247,2]
[384854291,1757595036190,-281.28941039,0.00025247,2]
[384854292,1757595036199,-1000.0,0.00025247,2]
[384854293,1757595036209,-1000.0,0.00025247,2]
[384854294,1757595036219,-1000.0,0.00025247,2]
[384854295,1757595036228,-1000.0,0.00025247,2]
[384854296,1757595036237,-1000.0,0.00025247,2]
[384854297,1757595036246,-1000.0,0.00025247,2]
[384854298,1757595036256,-880.79490891,0.00025247,2]
[384854300,1757595036265,-565.88047572,0.00025247,2]
[384854301,1757595036275,-151.70159109,0.00025247,2]
[384854303,1757595036284,-500.0,0.00025247,2]
[384854305,1757595036293,-261.53416359,0.00025247,2]
[384854307,1757595036302,-513.64349793,0.00025247,2]
[384854310,1757595036311,-331.4062726,0.00025247,2]
[384854312,1757595036320,-162.380719,0.00025247,2]
[384854313,1757595036329,-210.20734389,0.00025247,2]
[384854315,1757595036339,-646.65982734,0.00025247,2]
[384854317,1757595036348,-248.71531821,0.00025247,2]
[384854319,1757595036358,-168.0,0.00025389,2]
[384854321,1757595036366,-518.0,0.00025391,2]
[384854323,1757595036376,-382.0,0.000254,2]
[384854325,1757595036386,-166.67,0.00025451,2]
[384854327,1757595036396,-400.0,0.00025463,2]
[384854329,1757595036405,-1087.0,0.00025483,2]
[384854331,1757595036414,-208.83,0.0002566,2]
[384854333,1757595036425,-471.46,0.00025684,2]
[384854335,1757595036434,-471.46,0.00025684,2]
[384854339,1757595036443,-471.46,0.00025684,2]
[384854343,1757595036452,-471.46,0.00025684,2]
[384854347,1757595036461,-471.46,0.00025684,2]